bitfinex/quotes_ETHUSD_20240716
["timestamp","ask_amount","ask_price","bid_price","bid_amount"]
[1721125361988,7.37,3406.9,3406.3,2.93573]
[1721125362915,7.37,3406.9,3406.7,2.93537]
[1721125363433,7.37,3406.9,3406.8,2.9353]
[1721125363608,7.37,3407.5,3406.9,2.93519]
[1721125363928,0.9194853,3407.4,3406.9,2.93519]
[1721125364213,0.31659721,3407.3,3406.9,2.93519]
[1721125364524,0.31659721,3407.3,3406.8,2.93529]
[1721125365424,0.31661608,3407.2,3406.8,2.93529]
[1721125365613,0.31661595,3407.1,3406.8,2.93529]
[1721125365782,0.31661595,3407.0,3406.8,2.93529]
[1721125366122,3.53767809,3407.4,3406.6,2.93545]
[1721125366414,2.00516298,3407.3,3406.6,2.93545]
[1721125366622,0.31663217,3407.2,3406.6,2.93545]
[1721125366781,2.65523217,3407.2,3406.2,2.4342]
[1721125366980,5.8704,3407.0,3406.1,2.93587]
[1721125367244,0.31663217,3406.9,3406.1,5.87171]
[1721125367419,1.47349539,3406.9,3406.2,2.9358]
[1721125367577,0.31663217,3406.8,3406.2,2.9358]
[1721125368480,1.15686322,3406.9,3406.3,2.93572]
[1721125368688,0.31668922,3406.8,3406.3,2.93572]
[1721125370134,0.31668922,3406.8,3406.1,2.93584]
[1721125370686,0.31668922,3406.8,3406.2,2.9358]
[1721125371921,0.31671057,3406.7,3406.3,2.93572]
[1721125372228,0.31671057,3406.6,3406.3,3.522876]
[1721125372419,2.93522,3406.9,3406.3,2.93572]
[1721125372627,0.31669419,3406.8,3406.3,2.93572]
[1721125373012,0.31669419,3406.8,3406.1,5.87168]
[1721125373210,0.31669419,3406.8,3406.1,2.93584]
[1721125373591,0.31669419,3406.8,3406.1,5.87168]
[1721125373935,0.31669419,3406.8,3406.1,2.93584]
[1721125374117,0.31669419,3406.8,3406.2,2.93582]
[1721125374827,0.31669419,3406.8,3406.3,2.93573]
[1721125375030,0.31669419,3406.8,3406.1,5.87168]
[1721125375229,0.3167228,3406.7,3406.1,2.93584]
[1721125375403,0.3167228,3406.6,3406.2,2.93576]
[1721125375608,3.7068212,3406.9,3406.2,2.93576]
[1721125375609,0.3167167,3406.5,3406.2,2.93576]
[1721125375937,2.93522,3406.9,3406.2,2.93576]
[1721125375938,0.3167167,3406.4,3406.2,2.93576]
[1721125376093,2.93522,3406.9,3406.2,2.93576]
[1721125376293,0.31672295,3406.8,3406.2,2.93576]
[1721125378333,1.58472213,3406.7,3406.2,2.93576]
[1721125378533,0.31672213,3406.6,3406.2,2.93576]
[1721125380200,0.31672213,3406.6,3406.3,2.93573]
[1721125380437,0.31672213,3406.5,3406.3,2.93573]
[1721125380726,0.31672213,3406.4,3406.3,2.93573]
[1721125381148,1.38282453,3406.8,3406.3,2.93573]
[1721125381322,0.31672213,3406.7,3406.3,2.93573]
[1721125381508,0.31672213,3406.6,3406.3,2.93573]
[1721125381837,0.31672213,3406.5,3406.0,2.93595]
[1721125382004,0.31672213,3406.4,3406.1,2.9359]
[1721125382350,0.31672213,3406.3,3406.1,2.9359]
[1721125382535,0.31672213,3406.2,3406.1,2.9359]
[1721125382837,0.31672213,3406.6,3406.1,2.9359]
[1721125383133,0.31672213,3406.6,3406.1,5.87175]
[1721125383333,0.31672213,3406.5,3406.1,6.831695]
[1721125383538,0.31672213,3406.4,3406.1,6.831695]
[1721125383845,0.31672213,3406.3,3406.1,3.895795]
[1721125384049,4.20322,3406.9,3406.1,3.895795]
[1721125384050,1.38282144,3406.8,3406.1,6.831625]
[1721125384206,4.20322,3406.9,3406.1,5.87168]
[1721125384405,1.38282189,3406.8,3406.1,5.87168]
[1721125384605,0.3167269,3406.7,3406.2,2.93582]
[1721125384806,0.3167269,3406.6,3406.2,2.93582]
[1721125385006,0.3167269,3406.5,3406.2,2.93582]
[1721125385220,0.3167269,3406.4,3406.2,2.93582]
[1721125385424,0.3167269,3406.3,3406.2,2.93582]
[1721125385615,0.3167269,3406.8,3406.2,2.93582]
[1721125386040,0.31667195,3406.7,3406.2,2.93582]
[1721125386240,7.42117377,3407.0,3406.4,2.93563]
[1721125386241,0.31667195,3406.6,3406.4,2.93563]
[1721125386442,7.42117377,3407.0,3406.4,8.12798]
[1721125386443,0.31667195,3406.5,3406.4,8.12798]
[1721125386728,0.3166561,3406.9,3406.6,2.93547]
[1721125387051,0.31665469,3406.8,3406.6,2.93547]
[1721125387365,0.31665469,3406.7,3406.6,2.93547]
[1721125387579,0.31663392,3406.7,3406.6,2.93547]
[1721125387736,0.31663392,3406.9,3406.6,2.93547]
[1721125388081,0.31664223,3406.8,3406.6,2.93547]
[1721125388233,0.31664223,3406.7,3406.6,2.93547]
[1721125388431,0.31664223,3406.7,3406.4,5.19228]
[1721125388664,0.31664223,3406.6,3406.4,5.19228]
[1721125388827,1.268,3406.8,3406.4,5.19228]
[1721125388828,1.268,3406.8,3406.5,2.93556]
[1721125389030,0.31666082,3406.7,3406.5,2.93556]
[1721125389976,0.31666082,3406.7,3406.2,2.93577]
[1721125390426,1.0660702,3406.6,3406.2,2.93577]
[1721125390630,1.268,3406.8,3406.2,2.93577]
[1721125390877,1.38278014,3406.7,3406.2,2.93577]
[1721125391326,1.38278014,3406.7,3406.1,5.20359]
[1721125391846,1.268,3406.6,3406.1,2.93589]
[1721125392065,1.38278014,3406.5,3406.1,2.93589]
[1721125393081,0.31670881,3406.4,3406.1,2.93589]
[1721125393230,0.31670881,3406.3,3406.1,2.93589]
[1721125393433,0.31670881,3406.2,3406.1,2.93589]
[1721125393668,0.31670881,3406.5,3406.1,2.93589]
[1721125393836,1.38281536,3406.5,3406.1,2.93589]
[1721125394041,0.31673436,3406.4,3406.1,2.93589]
[1721125394344,0.31673436,3406.3,3406.1,2.93589]
[1721125394543,0.31673436,3406.2,3406.1,2.93589]
[1721125394777,0.31673436,3406.5,3406.1,2.93584]
[1721125394945,0.31673436,3406.4,3406.1,5.87167]
[1721125395140,0.31673436,3406.3,3406.1,5.87167]
[1721125395371,0.31673436,3406.2,3406.1,2.93583]
[1721125395553,4.20332,3406.8,3406.1,2.93583]
[1721125395554,0.31673436,3406.7,3406.1,5.87164]
[1721125395753,1.38283574,3406.6,3406.1,2.93582]
[1721125395956,4.20332,3406.8,3406.1,2.93582]
[1721125395957,0.31673436,3406.5,3406.1,5.87165]
[1721125396145,0.31673436,3406.4,3406.1,5.87165]
[1721125396344,0.31673436,3406.3,3406.1,2.93582]
[1721125396546,0.31673436,3406.2,3406.1,2.93582]
[1721125396758,1.38284291,3406.7,3406.1,2.93582]
[1721125396973,2.65084302,3406.6,3406.1,5.87167]
[1721125397305,1.38284302,3406.5,3406.1,5.87167]
[1721125397446,0.31673527,3406.5,3406.1,5.87167]
[1721125398134,0.31673527,3406.4,3406.2,2.9358]
[1721125398334,0.31673527,3406.3,3406.2,2.9358]
[1721125398748,0.31673527,3406.3,3406.2,5.2373]
[1721125398990,0.31673527,3406.8,3406.2,6.054612]
[1721125399175,1.0660087,3406.7,3406.2,5.2373]
[1721125399353,1.0660087,3406.7,3406.2,2.3015]
[1721125399550,0.31673527,3406.6,3406.3,2.93573]
[1721125399885,1.268,3406.9,3406.3,2.93573]
[1721125399886,0.31673527,3406.5,3406.3,2.93573]
[1721125400087,0.31673527,3406.4,3406.3,2.93573]
[1721125400285,0.31673527,3406.8,3406.3,2.93573]
[1721125400491,1.06603054,3406.7,3406.3,2.93573]
[1721125400655,1.268,3406.9,3406.3,2.93573]
[1721125400856,1.38269507,3406.8,3406.3,2.93573]
[1721125401158,1.38269347,3406.7,3406.5,2.93555]
[1721125401390,0.31667167,3406.6,3406.5,2.93555]
[1721125401595,7.42117377,3407.0,3406.6,2.93546]
[1721125401902,1.38254638,3406.9,3406.6,2.93546]
[1721125402192,0.31660863,3406.8,3406.6,2.93546]
[1721125402392,0.31660863,3406.7,3406.6,2.93546]
[1721125402700,0.31661656,3406.9,3406.7,2.93538]
[1721125402866,0.31661559,3406.8,3406.7,2.93538]
[1721125403196,1.38257626,3406.9,3406.7,2.93538]
[1721125403490,0.31661559,3406.8,3406.7,2.93538]
[1721125404000,5.58588361,3406.8,3406.2,5.23732]
[1721125404292,1.38256361,3406.7,3406.4,2.9356]
[1721125406107,0.31661599,3406.6,3406.4,2.9356]
[1721125406267,0.05117377,3407.0,3406.7,2.93535]
[1721125406472,0.31657669,3406.9,3406.7,2.93535]
[1721125406672,0.31657669,3406.9,3406.6,2.93547]
[1721125407064,0.31660544,3406.8,3406.6,2.93547]
[1721125407296,0.31660544,3406.7,3406.6,2.93547]
[1721125407600,0.31659757,3406.9,3406.7,2.93538]
[1721125407773,0.31659754,3406.9,3406.7,2.93538]
[1721125409199,0.31659754,3406.9,3406.8,2.9353]
[1721125409587,1.268,3407.1,3406.7,5.30846]
[1721125409776,1.38250208,3407.0,3406.7,5.30846]
[1721125409993,1.268,3407.1,3406.7,5.30846]
[1721125409994,0.31659754,3406.9,3406.7,5.30846]
[1721125410222,0.31659754,3407.0,3406.7,5.30846]
[1721125410426,1.268,3407.1,3406.7,2.3731]
[1721125410427,0.31659754,3406.9,3406.7,2.3731]
[1721125410718,0.31659754,3406.8,3406.5,2.93553]
[1721125410894,1.268,3407.1,3406.5,2.93553]
[1721125410895,0.31659754,3406.7,3406.5,2.93553]
[1721125411096,0.31659754,3406.6,3406.5,2.93553]
[1721125411503,1.38256182,3407.0,3406.5,5.87102]
[1721125411697,1.38256141,3406.9,3406.5,2.93549]
[1721125411897,1.38256141,3406.8,3406.5,2.93549]
[1721125412103,0.31659754,3406.7,3406.5,2.93549]
[1721125412417,0.31659754,3406.6,3406.5,2.93549]
[1721125412618,1.38256972,3407.0,3406.5,2.93549]
[1721125412805,1.38257509,3406.9,3406.5,2.93549]
[1721125413010,1.38257509,3406.8,3406.5,2.93549]
[1721125413199,0.31659754,3406.7,3406.5,2.93549]
[1721125413400,0.31659754,3406.6,3406.5,2.93549]
[1721125413604,4.20305,3407.1,3406.5,2.93549]
[1721125413605,1.38261531,3407.0,3406.5,2.93549]
[1721125413811,1.38261486,3406.9,3406.5,2.93549]
[1721125414117,1.38261955,3406.8,3406.5,2.93549]
[1721125414422,0.31663999,3406.7,3406.5,2.93549]
[1721125414616,4.20305,3407.1,3406.5,2.93549]
[1721125414617,0.31663999,3406.6,3406.5,2.93549]
[1721125414979,1.38262003,3407.0,3406.5,2.93549]
[1721125416791,1.38255616,3406.9,3406.5,2.93549]
[1721125416991,0.31661282,3406.8,3406.5,2.93549]
[1721125417196,5.83885916,3407.1,3406.5,2.93549]
[1721125417197,0.31661282,3406.7,3406.5,2.93549]
[1721125417417,0.31661282,3406.6,3406.5,2.93549]
[1721125417841,1.38255658,3407.0,3406.5,2.93549]
[1721125418048,1.3825563,3406.9,3406.4,2.3807]
[1721125418262,2.6505563,3406.9,3406.4,2.3807]
[1721125418430,0.31661282,3406.8,3406.4,2.3807]
[1721125419709,0.31661282,3406.8,3406.3,2.93567]
[1721125419938,0.31661282,3406.8,3406.2,2.9358]
[1721125420143,0.31663122,3406.7,3406.2,2.9358]
[1721125420449,0.31663122,3406.6,3406.2,2.9358]
[1721125420750,0.31663122,3406.6,3406.1,5.33983]
[1721125420751,0.31663122,3406.5,3406.3,2.93573]
[1721125420958,0.31663122,3406.4,3406.3,2.93573]
[1721125421256,0.31663122,3406.8,3406.3,2.93573]
[1721125421939,0.31663122,3406.8,3406.2,2.93577]
[1721125423425,0.31663598,3406.7,3406.2,2.93577]
[1721125423739,0.31663598,3406.6,3406.2,2.93577]
[1721125424058,0.31663598,3406.5,3406.2,2.93577]
[1721125424263,0.31663598,3406.4,3406.2,2.93577]
[1721125424446,0.31663598,3406.3,3406.2,2.93577]
[1721125424755,1.38261929,3406.8,3406.1,5.33983]
[1721125424967,1.268,3406.4,3406.1,2.404]
[1721125425123,0.31663598,3406.3,3405.9,2.93605]
[1721125425321,0.31663598,3406.3,3405.8,2.3272]
[1721125425520,1.38284365,3406.3,3405.8,2.3272]
[1721125425823,1.38284365,3406.3,3405.8,5.2633]
[1721125426232,2.65079846,3406.2,3405.5,5.19619]
[1721125426440,4.20399,3406.0,3405.5,2.2598]
[1721125426646,4.20399,3406.0,3405.1,2.93673]
[1721125426647,0.3168971,3405.9,3405.2,2.2598]
[1721125426845,4.31930636,3405.9,3405.2,2.2598]
[1721125427052,2.93608,3405.9,3405.2,2.2598]
[1721125427252,1.38346061,3405.8,3405.2,2.2598]
[1721125427524,0.31700044,3405.7,3405.2,5.19648]
[1721125427726,0.31700044,3405.6,3405.2,5.19648]
[1721125427925,0.31700044,3405.5,3405.2,5.19648]
[1721125428148,0.31700044,3405.4,3405.3,2.93659]
[1721125428354,8.638,3406.0,3405.3,2.93659]
[1721125428558,0.31691693,3405.9,3405.3,2.93659]
[1721125429167,0.31691693,3405.9,3405.5,2.93641]
[1721125429368,0.31691693,3405.9,3405.7,2.3529]
[1721125429667,7.37,3406.6,3405.8,4.733091]
[1721125429847,0.31678947,3406.5,3405.8,3.465091]
[1721125430045,2.93541,3406.7,3405.8,3.465091]
[1721125430269,0.31672191,3406.6,3405.8,3.465091]
[1721125431333,0.31672191,3406.6,3406.0,2.93599]
[1721125431334,1.58472191,3406.6,3406.0,2.93599]
[1721125431540,0.31672191,3406.5,3406.0,2.93599]
[1721125432882,4.7836355,3406.9,3406.0,2.93599]
[1721125432883,1.268,3406.8,3406.0,2.93599]
[1721125433169,1.38283364,3406.7,3406.0,2.93599]
[1721125433476,0.31673271,3406.6,3406.0,2.93599]
[1721125433977,0.31673271,3406.6,3406.1,5.34104]
[1721125434178,0.31673271,3406.5,3406.1,5.34104]
[1721125434337,0.31673271,3406.4,3406.1,5.34104]
[1721125434538,0.31673271,3406.3,3406.1,5.34104]
[1721125434875,0.31673271,3406.2,3406.1,2.4052]
[1721125435452,4.31851973,3406.5,3406.1,2.4052]
[1721125435687,1.16893568,3406.4,3406.1,2.4052]
[1721125435872,1.16893568,3406.4,3405.8,2.93616]
[1721125435873,0.31673271,3406.3,3405.8,2.93616]
[1721125436084,0.31673271,3406.3,3405.8,5.43366]
[1721125436251,0.31681216,3406.2,3405.8,2.4975]
[1721125436459,0.31681216,3406.1,3405.8,2.4975]
[1721125436677,0.31681216,3406.0,3405.8,2.4975]
[1721125436867,0.31681216,3405.9,3405.8,2.4975]
[1721125437190,2.93573,3406.3,3405.6,2.93627]
[1721125437191,0.31681216,3406.2,3405.6,2.93627]
[1721125439099,0.31681216,3406.1,3405.6,2.93627]
[1721125439297,0.31681216,3406.0,3405.6,3.896706]
[1721125439500,2.93574,3406.3,3405.6,3.896706]
[1721125439501,0.31681216,3406.2,3405.6,3.896706]
[1721125439786,0.31681216,3406.1,3405.6,2.93627]
[1721125440028,0.31688871,3406.0,3405.6,2.93627]
[1721125440185,0.31688871,3405.9,3405.6,2.93627]
[1721125440389,0.31688871,3405.8,3405.6,2.93627]
[1721125440717,2.93574,3406.3,3405.5,5.40001]
[1721125440884,0.31688813,3406.2,3405.6,2.93632]
[1721125441915,0.3168919,3406.1,3405.6,2.93632]
[1721125442215,0.3168919,3406.0,3405.6,2.93632]
[1721125442424,0.3168919,3405.9,3405.6,2.93632]
[1721125442628,0.3168919,3405.8,3405.6,2.93632]
[1721125442791,2.93574,3406.3,3405.6,2.93632]
[1721125442990,0.31688117,3406.2,3405.6,2.93632]
[1721125443796,0.31688117,3406.2,3405.5,2.4636]
[1721125443797,3.25271117,3406.2,3405.5,2.4636]
[1721125443996,0.31688117,3406.1,3405.5,5.39996]
[1721125444397,0.31688117,3406.1,3405.5,2.4636]
[1721125445033,0.31688117,3406.1,3405.5,5.40002]
[1721125445218,0.31690122,3406.0,3405.5,5.40002]
[1721125445531,0.31690122,3405.9,3405.5,5.40002]
[1721125445739,0.31690122,3405.8,3405.5,2.4636]
[1721125445898,1.268,3406.0,3405.5,2.4636]
[1721125446100,0.31690368,3405.9,3405.5,2.4636]
[1721125446797,1.268,3406.0,3405.5,5.40002]
[1721125447143,0.31690771,3405.9,3405.5,5.40002]
[1721125447512,0.31690771,3405.9,3405.5,2.4636]
[1721125448535,4.20399,3406.0,3405.5,2.4636]
[1721125448715,1.03089784,3405.9,3405.5,2.4636]
[1721125448902,0.31690684,3405.8,3405.5,2.4636]
[1721125449102,2.93608,3405.9,3405.2,2.4734]
[1721125449341,0.3169102,3405.8,3405.2,2.4734]
[1721125449705,0.3169102,3405.8,3405.2,5.41007]
[1721125450115,0.3169102,3405.8,3405.2,2.4734]
[1721125450626,3.2530902,3405.8,3405.2,2.4734]
[1721125450827,0.3169102,3405.7,3405.2,2.4734]
[1721125451851,1.84669052,3406.4,3405.2,2.4734]
[1721125451852,1.268,3406.2,3405.3,2.93659]
[1721125452358,0.3169541,3406.1,3405.3,2.93659]
[1721125452713,1.268,3406.0,3405.3,2.93659]
[1721125452913,3.2530841,3405.9,3405.3,2.93659]
[1721125453135,0.3169541,3405.8,3405.3,2.93659]
[1721125455018,0.31695178,3405.7,3405.4,2.9365]
[1721125455222,1.268,3406.0,3405.4,2.9365]
[1721125455223,4.204,3406.0,3405.4,2.9365]
[1721125455442,0.31690769,3405.9,3405.4,2.9365]
[1721125457459,0.31690769,3405.9,3405.2,2.4734]
[1721125457673,0.31690769,3405.9,3405.3,2.93654]
[1721125458476,0.31692806,3405.8,3405.3,2.93654]
[1721125458630,4.204,3406.0,3405.3,2.93654]
[1721125458828,0.31692233,3405.9,3405.3,2.93654]
[1721125459028,3.25301233,3405.9,3405.3,2.93654]
[1721125459229,0.31692233,3405.8,3405.3,2.93654]
[1721125460253,0.31692233,3405.8,3405.3,3.93542]
[1721125461442,1.58492233,3405.8,3405.2,2.4734]
[1721125461641,1.268,3405.8,3405.2,2.4734]
[1721125461845,2.93609,3405.9,3405.2,2.4734]
[1721125462046,0.31693286,3405.8,3405.2,2.4734]
[1721125463442,0.31693286,3405.8,3405.3,2.93658]
[1721125463764,0.31693286,3405.7,3405.3,2.93658]
[1721125464071,1.268,3406.0,3405.3,2.93658]
[1721125464364,0.3169329,3405.9,3405.3,2.93658]
[1721125464779,0.3169329,3405.9,3405.2,2.4734]
[1721125464780,3.2530129,3405.9,3405.2,2.4734]
[1721125465085,0.31693275,3405.8,3405.2,5.41008]
[1721125465588,0.31693364,3405.7,3405.2,5.41008]
[1721125465765,2.93608,3405.9,3405.2,5.41008]
[1721125465966,0.31693396,3405.8,3405.2,5.41008]
[1721125467284,3.25314396,3405.8,3405.2,2.4734]
[1721125467495,0.31693396,3405.7,3405.2,2.4734]
[1721125468195,0.31694044,3405.6,3405.2,2.4734]
[1721125468357,0.31694044,3405.5,3405.2,2.4734]
[1721125468557,3.26315382,3405.8,3405.2,2.4734]
[1721125468884,0.31694064,3405.7,3405.2,2.4734]
[1721125469089,3.25320064,3405.7,3405.2,2.4734]
[1721125469399,0.31694064,3405.6,3405.2,2.4734]
[1721125470555,0.77761375,3405.6,3405.2,2.4734]
[1721125470759,0.31694064,3405.5,3405.2,2.4734]
[1721125471465,0.46067311,3405.6,3405.2,2.4734]
[1721125471466,0.31696227,3405.4,3405.2,2.4734]
[1721125471671,0.46067311,3405.6,3405.2,2.4734]
[1721125471902,0.31696214,3405.5,3405.2,2.4734]
[1721125474219,1.268,3405.4,3404.6,2.93719]
[1721125474527,1.268,3405.2,3404.6,2.93719]
[1721125474689,0.31706587,3405.1,3404.6,2.93719]
[1721125474874,0.31711738,3405.0,3404.6,2.93719]
[1721125475071,0.31711738,3404.9,3404.6,2.93719]
[1721125475299,4.2047,3405.2,3404.5,2.424]
[1721125475511,0.31712903,3405.1,3404.5,2.424]
[1721125475717,0.31712903,3405.1,3404.5,5.36122]
[1721125476224,0.31712903,3405.0,3404.5,5.36122]
[1721125476510,2.93665,3405.3,3404.5,5.36122]
[1721125476721,0.31705587,3405.2,3404.5,5.36122]
[1721125477016,0.31705587,3405.2,3404.5,6.317879]
[1721125477971,2.93665,3405.3,3404.5,6.317879]
[1721125477972,0.31705181,3405.1,3404.5,6.317879]
[1721125478176,2.93665,3405.3,3404.5,6.317879]
[1721125478714,0.31710178,3405.2,3404.5,6.317879]
[1721125478886,3.25379178,3405.2,3404.5,6.317879]
[1721125479092,1.58510178,3405.1,3404.5,5.36122]
[1721125479295,0.31710178,3405.0,3404.5,5.36122]
[1721125479526,0.31710178,3405.0,3404.5,2.424]
[1721125479911,0.31710178,3405.0,3404.5,5.36127]
[1721125480137,0.31710178,3404.9,3404.5,2.424]
[1721125480345,2.93669,3405.2,3404.5,2.424]
[1721125480346,0.31710178,3404.8,3404.5,2.424]
[1721125480522,0.31710178,3404.7,3404.5,2.424]
[1721125480722,0.31710178,3404.6,3404.5,2.424]
[1721125480952,0.31710178,3405.0,3404.5,2.424]
[1721125481150,0.31720972,3404.9,3404.5,2.424]
[1721125482509,0.31720972,3404.9,3404.3,2.93746]
[1721125482910,0.31720972,3404.9,3404.2,2.3683]
[1721125482911,0.31720972,3404.9,3404.4,2.93737]
[1721125483150,2.93673,3405.2,3404.5,2.3683]
[1721125483151,0.31720972,3404.8,3404.5,2.3683]
[1721125483359,2.93673,3405.2,3404.5,2.3683]
[1721125483647,0.31716208,3405.1,3404.5,2.3683]
[1721125483854,3.25393208,3405.1,3404.5,2.3683]
[1721125484065,0.31716208,3405.0,3404.5,2.3683]
[1721125484418,0.31714677,3404.9,3404.5,2.3683]
[1721125484632,2.93677,3405.1,3404.5,2.3683]
[1721125484838,0.31714526,3405.0,3404.5,2.3683]
[1721125485055,3.25400526,3405.0,3404.5,2.3683]
[1721125485256,0.31714526,3404.9,3404.5,2.3683]
[1721125486019,4.52208526,3404.9,3404.2,5.30577]
[1721125486215,0.31714526,3404.8,3404.2,2.3683]
[1721125486417,1.38351969,3404.8,3404.2,2.3683]
[1721125486666,1.58514526,3404.7,3404.2,2.3683]
[1721125486828,0.31714526,3404.6,3404.2,2.3683]
[1721125487225,3.25439526,3404.6,3403.9,5.3515]
[1721125487422,0.31714526,3404.5,3403.9,5.3515]
[1721125487621,0.3173259,3404.4,3403.9,5.3515]
[1721125487858,0.3173259,3404.3,3403.9,5.3515]
[1721125488175,2.93725,3404.6,3403.9,5.3515]
[1721125488322,0.31735005,3404.5,3403.9,5.3515]
[1721125488523,0.31735005,3404.5,3403.9,6.307187]
[1721125488747,0.31735005,3404.5,3403.9,9.244927]
[1721125488958,0.31735005,3404.5,3403.9,6.307187]
[1721125490824,2.93721,3404.6,3403.9,6.307187]
[1721125491138,0.31732808,3404.5,3403.9,6.307187]
[1721125491348,2.93721,3404.6,3404.0,2.9377]
[1721125491551,2.93721,3404.6,3403.9,6.307187]
[1721125491861,0.31732013,3404.5,3403.9,6.307187]
[1721125492234,2.93721,3404.6,3403.9,6.307187]
[1721125493058,2.93721,3404.6,3403.9,5.35144]
[1721125494338,2.93721,3404.6,3403.9,8.28917]
[1721125494529,2.93721,3404.6,3403.9,5.35143]
[1721125496140,2.93716,3404.7,3404.0,2.93771]
[1721125496336,2.93716,3404.7,3404.0,3.893424]
[1721125500217,1.268,3404.9,3404.1,2.93762]
[1721125500349,0.0512056,3405.0,3404.5,2.4073]
[1721125500549,2.93687,3405.0,3404.5,2.4073]
[1721125500768,4.388034,3405.0,3404.5,2.4073]
[1721125500994,5.656034,3405.0,3404.5,2.4073]
[1721125501155,2.93695,3404.9,3404.5,2.4073]
[1721125501691,2.93707,3404.8,3404.2,2.3745]
[1721125502952,2.93695,3404.9,3404.2,5.31202]
[1721125503277,2.93703,3404.8,3404.2,5.31202]
[1721125503883,4.388228,3404.8,3404.2,5.31202]
[1721125504284,4.388228,3404.8,3404.2,2.3745]
[1721125504481,5.656228,3404.8,3404.2,2.3745]
[1721125505903,2.93711,3404.7,3404.2,2.3745]
[1721125506480,0.31735191,3404.6,3403.9,5.21638]
[1721125506804,4.52255191,3404.6,3403.9,8.15411]
[1721125507104,4.52255191,3404.6,3403.9,2.2786]
[1721125507105,0.31735572,3404.5,3403.9,2.2786]
[1721125507290,0.31735572,3404.5,3402.9,6.03462]
[1721125507291,1.268,3404.1,3402.9,2.3831]
[1721125507506,1.268,3404.1,3403.1,2.3831]
[1721125507667,7.37,3404.5,3403.7,1.268]
[1721125507668,2.93755,3404.2,3403.7,1.268]
[1721125507869,4.262058,3404.2,3403.7,1.268]
[1721125508968,3.25511836,3404.1,3403.7,1.268]
[1721125509169,2.93765,3404.1,3403.7,1.268]
[1721125509801,2.93765,3404.1,3403.5,1.268]
[1721125510012,1.324508,3404.2,3403.9,1.268]
[1721125510184,2.9377,3404.1,3403.9,1.268]
[1721125510387,2.9377,3404.1,3403.7,1.268]
[1721125512114,2.93753,3404.3,3403.7,1.268]
[1721125512335,7.37,3404.5,3402.5,1.82779851]
[1721125512336,7.37,3404.5,3404.2,1.268]
[1721125512612,7.37,3405.0,3404.4,3.7513]
[1721125512921,15.38683,3405.1,3404.4,3.7513]
[1721125512922,2.93683,3405.1,3404.8,1.268]
[1721125513073,0.3171974,3405.0,3404.8,1.268]
[1721125513276,0.9413742,3405.0,3404.8,1.268]
[1721125513502,0.3171974,3404.9,3404.8,1.268]
[1721125514004,0.3171974,3405.0,3404.8,1.268]
[1721125515310,0.31721348,3404.9,3404.8,1.268]
[1721125515469,2.93677,3405.1,3404.8,1.268]
[1721125515470,0.31721348,3405.0,3404.8,1.268]
[1721125516110,0.31721205,3404.9,3404.8,1.268]
[1721125516409,0.31721205,3405.0,3404.8,1.268]
[1721125517511,3.87831231,3405.0,3404.6,1.268]
[1721125517682,0.31721205,3404.9,3404.6,1.268]
[1721125518909,3.25416205,3404.9,3404.6,1.268]
[1721125519122,0.31721205,3404.8,3404.7,2.3954]
[1721125519408,0.31717321,3405.2,3404.7,3.6634]
[1721125519606,2.98784056,3405.3,3405.0,1.268]
[1721125519607,0.31717321,3405.1,3405.0,1.268]
[1721125519777,0.31717321,3405.2,3405.0,1.268]
[1721125519978,0.31717321,3405.1,3405.0,1.268]
[1721125520222,3.25394321,3405.1,3404.8,1.268]
[1721125520384,0.31717321,3405.0,3404.8,1.268]
[1721125520922,0.31717321,3405.0,3404.0,5.41671]
[1721125520923,2.93713,3404.7,3404.0,5.41671]
[1721125521075,2.4834,3405.1,3404.0,2.479]
[1721125521076,0.31717321,3404.6,3404.0,2.479]
[1721125521278,2.93737,3404.4,3404.0,2.479]
[1721125521547,0.31717321,3404.3,3403.7,16.227]
[1721125521699,2.93756,3404.2,3403.7,14.959]
[1721125521899,0.31717321,3404.1,3403.8,1.268]
[1721125522334,2.93756,3404.2,3403.8,1.268]
[1721125522537,0.31749864,3404.1,3403.8,1.268]
[1721125523026,3.25513864,3404.1,3403.8,1.268]
[1721125523204,0.31748236,3404.0,3403.8,1.268]
[1721125524234,3.25520236,3404.0,3403.8,1.268]
[1721125524445,0.31748236,3403.9,3403.8,1.268]
[1721125525705,2.93772,3404.0,3403.8,1.268]
[1721125525890,0.31751877,3403.9,3403.8,1.268]
[1721125526297,2.93756,3404.2,3403.8,1.268]
[1721125526529,0.31743414,3404.1,3404.0,1.268]
[1721125526690,0.31743414,3404.3,3404.0,1.268]
[1721125526892,0.31743414,3404.2,3403.9,2.3566]
[1721125527141,3.25498414,3404.2,3404.1,1.268]
[1721125527305,3.75774079,3404.2,3404.1,1.268]
[1721125527814,3.25498414,3404.2,3404.1,1.268]
[1721125528995,2.93755,3404.2,3404.1,1.268]
[1721125529196,3.2549225,3404.2,3404.1,1.268]
[1721125529399,2.93737,3404.4,3404.1,1.268]
[1721125529617,0.31735702,3404.3,3404.1,1.268]
[1721125529813,3.25488702,3404.3,3404.1,1.268]
[1721125530013,0.31735702,3404.2,3404.1,1.268]
[1721125530750,3.25489702,3404.2,3403.9,1.268]
[1721125530899,3.25489702,3404.2,3403.7,12.48]
[1721125530900,0.93659972,3404.1,3403.7,13.748]
[1721125531101,0.31735702,3404.0,3403.7,13.748]
[1721125531313,0.31735702,3403.9,3403.7,13.748]
[1721125531540,0.31735702,3403.8,3403.7,13.748]
[1721125531838,0.31735702,3404.1,3403.7,13.748]
[1721125532038,0.31735702,3404.0,3403.7,13.748]
[1721125532240,2.93763,3404.1,3403.7,13.748]
[1721125532402,0.31734906,3404.0,3403.7,13.748]
[1721125533211,0.31734906,3404.0,3403.9,1.268]
[1721125534131,0.31734906,3404.2,3403.9,1.268]
[1721125534328,2.93753,3404.3,3403.7,12.48]
[1721125534329,0.31727903,3404.1,3403.7,12.48]